fUSD/lending_fUSD_20240402
["ID","MTS","AMOUNT","RATE_DAILY","PERIOD"]
[321247087,1712019041978,-1000.0,0.000577,7]
[321247088,1712019041988,-1000.0,0.000577,7]
[321247089,1712019041997,-267.25568713,0.00057707,120]
[321247090,1712019042006,-150.0,0.00057734,14]
[321247091,1712019042016,-500.0,0.00057744,120]
[321247092,1712019042025,-500.0,0.00057744,120]
[321247093,1712019042034,-500.0,0.00057744,120]
[321247094,1712019042044,-500.0,0.00057744,120]
[321247095,1712019042053,-500.0,0.00057744,120]
[321247096,1712019042063,-603.83,0.00057744,120]
[321247097,1712019042072,-2531.35,0.00057744,120]
[321247098,1712019042082,-45346.17,0.0005777,6]
[321247099,1712019042091,-1000.0,0.000578,7]
[321247100,1712019042100,-1606.91462,0.0005781,86]
[321247101,1712019042110,-500.0,0.00057873,120]
[321247102,1712019042119,-500.0,0.00057873,120]
[321247103,1712019042129,-500.0,0.00057873,120]
[321247104,1712019042140,-634.93,0.00057873,120]
[321247105,1712019042150,-500.0,0.00057873,120]
[321247106,1712019042159,-500.0,0.00057873,120]
[321247107,1712019042169,-500.0,0.00057873,120]
[321247108,1712019042179,-500.0,0.00057873,120]
[321247109,1712019042189,-500.0,0.00057873,120]
[321247110,1712019042199,-1579.54,0.00057873,120]
[321247111,1712019042208,-590.36,0.00057873,120]
[321247112,1712019042217,-712.25,0.00057873,120]
[321247113,1712019042227,-3888.08,0.00057873,120]
[321247114,1712019042236,-500.0,0.00057873,120]
[321247115,1712019042246,-500.0,0.00057873,120]
[321247116,1712019042257,-500.0,0.00057873,21]
[321247117,1712019042266,-500.0,0.00057873,120]
[321247118,1712019042276,-500.0,0.00057873,120]
[321247119,1712019042285,-500.0,0.00057873,120]
[321247120,1712019042294,-528.76,0.00057873,120]
[321247121,1712019042303,-500.0,0.00057874,120]
[321247122,1712019042313,-500.0,0.00057874,120]
[321247123,1712019042322,-500.0,0.00057874,120]
[321247124,1712019042333,-500.0,0.00057874,120]
[321247125,1712019042342,-500.0,0.00057874,120]
[321247126,1712019042351,-9540.89,0.00057874,120]
[321247127,1712019042363,-500.0,0.00057874,120]
[321247128,1712019042372,-500.0,0.00057874,120]
[321247129,1712019042382,-500.0,0.00057874,7]
[321247130,1712019042393,-1068.19,0.00057874,120]
[321247131,1712019042402,-827.57,0.00057874,120]
[321247132,1712019042412,-500.0,0.00057874,120]
[321247133,1712019042422,-500.0,0.00057874,120]
[321247134,1712019042431,-500.0,0.00057874,120]
[321247135,1712019042440,-500.0,0.00057874,120]
[321247136,1712019042450,-524.58016839,0.00057874,120]
[321247137,1712019042460,-2811.45,0.00057874,120]
[321247138,1712019042471,-7006.72,0.00057874,120]
[321247139,1712019042481,-500.0,0.00057874,120]
[321247140,1712019042490,-1128.69,0.00057875,3]
[321247141,1712019042500,-1043.69,0.00057883,2]
[321247142,1712019042509,-150.0,0.000579,13]
[321247143,1712019042519,-150.0,0.00057984,14]
[321247144,1712019042530,-150.0,0.00057996,14]
[321247145,1712019042539,-150.0,0.00057998,14]
[321247146,1712019042549,-2000.0,0.00058,30]
[321247147,1712019042559,-892.0,0.00058,30]
[321247148,1712019042570,-500.0,0.00058,45]
[321247149,1712019042580,-152.166961,0.00058002,14]
[321247151,1712019042589,-500.0,0.00058018,120]
[321247152,1712019042599,-500.0,0.00058018,120]
[321247153,1712019042608,-596.17,0.00058018,120]
[321247154,1712019042619,-500.0,0.00058018,120]
[321247155,1712019042629,-500.0,0.00058018,120]
[321247156,1712019042638,-2531.35,0.00058018,120]
[321247157,1712019042648,-150.0,0.00058035,14]
[321247158,1712019042658,-7500.0,0.00058048,3]
[321247159,1712019042668,-150.0,0.0005807,14]
[321247161,1712019042677,-1500.0,0.00058089,14]
[321247162,1712019042686,-539.0,0.000581,25]
[321247163,1712019042696,-3994.263425,0.000581,2]
[321247164,1712019042706,-150.0,0.00058109,14]
[321247165,1712019042715,-1500.0,0.00058113,14]
[321247166,1712019042727,-1500.0,0.00058122,14]
[321247167,1712019042736,-2863.72452518,0.00058138,36]
[321247168,1712019042745,-150.0,0.00058143,14]
[321247169,1712019042755,-500.0,0.00058147,120]
[321247170,1712019042764,-500.0,0.00058147,120]
[321247171,1712019042774,-500.0,0.00058147,120]
[321247172,1712019042783,-634.93,0.00058147,120]
[321247173,1712019042793,-500.0,0.00058147,120]
[321247174,1712019042802,-500.0,0.00058147,120]
[321247175,1712019042812,-500.0,0.00058147,120]
[321247176,1712019042822,-500.0,0.00058147,120]
[321247177,1712019042833,-465.51,0.00058147,120]
[321247178,1712019042843,-1579.54,0.00058147,120]
[321247179,1712019042852,-590.36,0.00058147,120]
[321247180,1712019042864,-712.25,0.00058147,120]
[321247181,1712019042873,-3888.08,0.00058147,120]
[321247182,1712019042883,-500.0,0.00058147,120]
[321247183,1712019042893,-500.0,0.00058147,120]
[321247184,1712019042903,-500.0,0.00058147,21]
[321247185,1712019042913,-618.33,0.00058147,120]
[321247186,1712019042922,-500.0,0.00058147,120]
[321247187,1712019042932,-500.0,0.00058147,120]
[321247188,1712019042943,-528.76,0.00058147,120]
[321247189,1712019042952,-500.0,0.00058148,120]
[321247190,1712019042962,-500.0,0.00058148,120]
[321247191,1712019042972,-500.0,0.00058148,120]
[321247192,1712019042983,-206.82,0.00058148,120]
[321247193,1712019042993,-500.0,0.00058148,120]
[321247194,1712019043003,-9540.89,0.00058148,120]
[321247195,1712019043013,-500.0,0.00058148,120]
[321247196,1712019043023,-500.0,0.00058148,120]
[321247197,1712019043033,-500.0,0.00058148,7]
[321247198,1712019043043,-827.57,0.00058148,120]
[321247199,1712019043187,-1068.19,0.00058148,120]
[321247200,1712019043197,-500.0,0.00058148,120]
[321247201,1712019043207,-500.0,0.00058148,120]
[321247202,1712019043217,-500.0,0.00058148,120]
[321247203,1712019043227,-500.0,0.00058148,120]
[321247204,1712019043237,-2811.45,0.00058148,120]
[321247207,1712019043246,-7006.72,0.00058148,120]
[321247210,1712019043256,-500.0,0.00058148,120]
[321247212,1712019043266,-1128.69,0.00058149,3]
[321247213,1712019043275,-1500.0,0.00058179,14]
[321247215,1712019043285,-150.0,0.00058181,14]
[321247216,1712019043296,-1500.0,0.00058182,14]
[321247217,1712019043305,-4271.31633121,0.00058197,30]
[321247218,1712019043315,-1610.30155134,0.00058197,2]
[321247219,1712019043324,-14355.62534836,0.00058197,2]
[321247220,1712019043334,-1393.6880372,0.00058197,120]
[321247221,1712019043343,-203.96862408,0.00058197,2]
[321247222,1712019043353,-1126.0,0.000582,120]
[321247223,1712019043364,-150.0,0.00058202,14]
[321247224,1712019043373,-1500.0,0.0005822,14]
[321247225,1712019043383,-921.21284069,0.00058236,30]
[321247226,1712019043392,-464.7293383,0.00058236,30]
[321247227,1712019043402,-921.21284069,0.00058237,30]
[321247228,1712019043411,-173232.41375864,0.00058237,30]
[321247229,1712019043421,-1143.66532948,0.00058237,30]
[321247230,1712019043430,-173232.41375864,0.00058238,30]
[321247231,1712019043440,-61092.19234163,0.0005824,30]
[321247232,1712019043450,-165.06874808,0.00058241,30]
[321247233,1712019043460,-268.4831483,0.00058241,30]
[321247234,1712019043470,-61092.19234163,0.00058241,30]
[321247235,1712019043482,-1027.61957266,0.00058242,30]
[321247236,1712019043492,-1143.66532948,0.00058242,30]
[321247237,1712019043509,-1500.0,0.00058244,14]
[321247238,1712019043524,-1143.66532948,0.00058245,30]
[321247239,1712019043535,-268.4831483,0.00058246,30]
[321247240,1712019043546,-38224.39172903,0.00058247,30]
[321247241,1712019043556,-464.7293383,0.00058248,30]
[321247242,1712019043567,-44058.77597621,0.0005825,30]
[321247243,1712019043725,-331.19548215,0.0005667,30]
[321247244,1712019043735,-138499.41642658,0.0005825,30]
[321247245,1712019043747,-306.21570466,0.0005825,30]
[321247246,1712019043770,-331.19548215,0.0005667,30]
[321247247,1712019043780,-564.96,0.00057051,120]
[321247248,1712019043790,-5396.60402855,0.0005825,30]
[321247249,1712019043800,-908.81420832,0.00058251,30]
[321247250,1712019043812,-20041.02999998,0.00058251,30]
[321247276,1712019044245,-224.84798273,0.00056669,4]
[321247278,1712019044254,-278.62589179,0.0005667,30]
[321247281,1712019044276,-52.56959036,0.0005667,30]
[321247284,1712019044287,-331.19548215,0.0005667,30]
[321247286,1712019044296,-331.19548215,0.0005667,30]
[321247288,1712019044305,-331.19548215,0.0005667,30]
[321247290,1712019044315,-331.19548215,0.0005667,30]
[321247291,1712019044324,-331.19548215,0.0005667,30]
[321247294,1712019044335,-187.45299909,0.0005667,30]
[321247296,1712019044348,-143.74248306,0.0005667,30]
[321247297,1712019044358,-331.19548215,0.0005667,30]
[321247298,1712019044369,-331.19548215,0.0005667,30]
[321247299,1712019044379,-331.19548215,0.00056689,30]
[321247300,1712019044388,-331.19548215,0.00056768,30]
[321247301,1712019044398,-331.19548215,0.00056768,30]
[321247302,1712019044407,-331.19548215,0.00056768,30]
[321247303,1712019044417,-331.19548215,0.00056768,30]
[321247304,1712019044426,-331.19548215,0.00056768,30]
[321247305,1712019044435,-331.19548215,0.00056768,30]
[321247306,1712019044444,-331.19548215,0.00056768,30]
[321247307,1712019044454,-331.19548215,0.00056768,30]
[321247308,1712019044464,-331.19548215,0.00056769,30]
[321247309,1712019044476,-686.76841449,0.00056771,30]
[321247310,1712019044490,-500.0,0.00056777,120]
[321247311,1712019044500,-500.0,0.00056777,120]
[321247312,1712019044510,-500.0,0.00056777,120]
[321247313,1712019044520,-500.0,0.00056778,120]
[321247314,1712019044530,-394.09907237,0.00056778,120]
[321247315,1712019044544,-105.90092763,0.00056778,120]
[321247316,1712019044556,-331.19548215,0.00056912,30]
[321247317,1712019044566,-331.19548215,0.00057041,30]
[321247318,1712019044576,-331.19548215,0.00057041,30]
[321247319,1712019044586,-331.19548215,0.00057041,30]
[321247320,1712019044596,-331.19548215,0.00057041,30]
[321247321,1712019044606,-29.77395769,0.00057041,30]
[321247322,1712019044619,-301.42152446,0.00057041,30]
[321247323,1712019044630,-296.44,0.00057052,120]
[321247324,1712019044640,-507.3940001,0.00057325,120]
[321247325,1712019044652,-57.5659999,0.00057325,120]
[321247326,1712019044662,-564.96,0.00057599,120]
[321247327,1712019044672,-564.96,0.00057873,120]
[321247328,1712019044682,-150.0,0.00058053,14]
[321247329,1712019044693,-564.96,0.00058147,120]
[321247330,1712019044703,-162.88213792,0.00058206,58]
[321247331,1712019044713,-13946.46561148,0.00058251,30]
[321247332,1712019044726,-7153.46878369,0.00058251,30]
[321247333,1712019044739,-2113.83,0.00058251,30]
[321247334,1712019044752,-144097.40353253,0.00058251,30]
[321247335,1712019044767,-61092.19234163,0.00058251,30]
[321247336,1712019044777,-1143.66532948,0.00058251,30]
[321247337,1712019044787,-150.0,0.00058254,14]
[321247338,1712019044797,-5527.27704411,0.00058256,30]
[321247339,1712019044807,-1027.61957266,0.00058257,30]
[321247340,1712019044817,-464.7293383,0.00058261,30]
[321247341,1712019044827,-61092.19234163,0.00058262,30]
[321247342,1712019044837,-268.4831483,0.00058267,30]
[321247343,1712019044846,-5527.27704411,0.00058267,30]
[321247344,1712019044856,-8167.37562144,0.00058267,30]
[321247345,1712019044867,-165.06874808,0.00058267,30]
[321247346,1712019044876,-165.06874808,0.00058269,30]
[321247347,1712019044885,-8167.37562144,0.00058271,30]
[321247348,1712019044895,-268.4831483,0.00058272,30]
[321247349,1712019044904,-1143.66532948,0.00058272,30]
[321247350,1712019044914,-650.0,0.00058273,15]
[321247351,1712019044923,-8167.37562144,0.00058275,30]
[321247352,1712019044932,-2000.0,0.00058276,120]
[321247353,1712019044942,-5527.27704411,0.00058276,30]
[321247354,1712019044951,-199809.26847886,0.00058277,36]
[321247355,1712019044963,-80791.71289922,0.00058277,36]
[321247356,1712019044973,-125559.38956602,0.00058277,30]
[321247357,1712019044997,-49449.35485607,0.00056669,4]
[321247358,1712019045006,-331.19548215,0.00057042,30]
[321247359,1712019045016,-500.0,0.00057052,120]
[321247360,1712019045026,-47673.02419262,0.00058277,30]
[321247361,1712019045035,-65102.40200794,0.00058281,30]
[321247362,1712019045049,-3518.3,0.00058281,30]
[321247363,1712019045062,-119640.31012806,0.00058281,30]
[321247364,1712019045071,-165.06874808,0.00058283,30]
[321247365,1712019045080,-921.21284069,0.00058283,30]
[321247366,1712019045091,-650.0,0.00058283,15]
[321247367,1712019045101,-55007.4001527,0.00058284,30]
[321247368,1712019045114,-679.88337393,0.00058284,30]
[321247369,1712019045125,-2095.85230013,0.00058284,30]
[321247370,1712019045137,-261.355,0.00058284,30]
[321247371,1712019045154,-200.0,0.000575,20]
[321247372,1712019045165,-3047.70151487,0.00058284,30]
[321247373,1712019045175,-2755.80656457,0.00058285,30]
[321247374,1712019045186,-2771.47047954,0.00058285,30]
[321247375,1712019045196,-1143.66532948,0.00058287,30]
[321247376,1712019045206,-1621.69352837,0.0005829,30]
[321247377,1712019045219,-1628.48705554,0.0005829,30]
[321247378,1712019045231,-16672.35827611,0.0005829,30]
[321247379,1712019045247,-706.82954959,0.0005829,30]
[321247380,1712019045258,-352.19158474,0.0005829,30]
[321247381,1712019045270,-7391.86754443,0.0005829,30]
[321247382,1712019045282,-9850.96419025,0.0005829,30]
[321247383,1712019045292,-921.21284069,0.00058291,30]
[321247384,1712019045301,-150.0,0.00058292,14]
[321247385,1712019045311,-500.0,0.00058292,120]
[321247386,1712019045321,-500.0,0.00058292,120]
[321247387,1712019045330,-500.0,0.00058292,120]
[321247388,1712019045339,-500.0,0.00058292,120]
[321247389,1712019045349,-2531.35,0.00058292,120]
[321247390,1712019045358,-650.0,0.00058293,15]
[321247391,1712019045371,-40646.91766387,0.00058296,30]
[321247392,1712019045388,-400.0,0.00057326,120]
[321247393,1712019045404,-100.0,0.00057326,120]
[321247394,1712019045414,-1977.5,0.00058296,30]
[321247396,1712019045852,-999.6,0.0005658,2]
[321247397,1712019045954,-0.4,0.0005658,2]
[321247398,1712019045964,-294.3504502,0.00056669,4]
[321247399,1712019045973,-519.15670161,0.00056669,7]
[321247400,1712019045983,-879.03067766,0.00056688,4]
[321247401,1712019045992,-500.0,0.00056777,120]
[321247402,1712019046001,-500.0,0.00056777,120]
[321247403,1712019046010,-838.06132381,0.00057051,2]
[321247404,1712019046020,-500.0,0.00057051,120]
[321247405,1712019046029,-618.92,0.000576,120]
[321247406,1712019046039,-500.0,0.000576,21]
[321247407,1712019046050,-150.0,0.00058136,120]
[321247408,1712019046059,-3730.04859743,0.00058296,30]
[321247409,1712019046071,-555.96595038,0.00058296,30]
[321247410,1712019046089,-7567.08157827,0.00058296,30]
[321247411,1712019046100,-15921.92493994,0.00058296,30]
[321247412,1712019047938,592.06630035,0.0005101,30]
[321247413,1712019067347,157.032915,0.00048448,100]
[321247414,1712019098567,3389.29374932,0.00048,120]
[321247415,1712019115021,13835.05656379,0.00048448,2]
[321247416,1712019130738,151.0,0.0005,120]
[321247422,1712019148517,151.0,0.00048,120]
[321247424,1712020030157,-273.25398756,0.00037707,4]
[321247425,1712020030178,-594.90549809,0.00037708,2]
[321247426,1712020036140,-1673.65935912,0.00037708,2]
[321247427,1712020036161,-156.77,0.00037808,2]
[321247428,1712020036181,-368.69921281,0.0004,2]
[321247429,1712020036200,-85.36589314,0.0004,2]
[321247430,1712020043077,-1141.39929124,0.0004,2]
[321247431,1712020043097,-720.98682566,0.00043,4]
[321247432,1712020043115,-465.50196245,0.00043298,4]
[321247433,1712020043136,-2666.685895,0.000433,41]
[321247434,1712020043159,-319.27,0.00043552,10]
[321247435,1712020043180,-150.0,0.0004356,5]
[321247436,1712020043201,-499.99,0.00043562,2]
[321247437,1712020043224,-3651.17652053,0.00044444,7]
[321247438,1712020043421,-151.76,0.00047195,2]
[321247439,1712020043445,-650.83,0.00047399,2]
[321247440,1712020043466,-877.36,0.00047628,2]
[321247441,1712020043485,-2269.17,0.00047709,30]
[321247442,1712020043503,-200.0,0.00047742,2]
[321247443,1712020043525,-87.0768986,0.0004776,2]
[321247445,1712020156121,-159.3568106,0.00037708,2]
[321247446,1712020156145,-159.35681056,0.00040522,2]
[321247447,1712020156170,-159.35681056,0.00043337,2]
[321247448,1712020156195,-180.24670641,0.00043559,4]
[321247449,1712020156218,-211.58638469,0.0004356,4]
[321247450,1712020156244,-500.0,0.0004356,4]
[321247451,1712020156268,-159.35681056,0.00046151,2]
[321247452,1712020156291,-135.2631014,0.0004776,2]
[321247453,1712020156314,-213.23181603,0.0004776,30]
[321247454,1712020156340,-769.88,0.00047769,10]
[321247455,1712020156364,-826.51,0.00047769,10]
[321247456,1712020156388,-23900.0,0.00047779,2]
[321247457,1712020156411,-150.0,0.00047898,120]
[321247458,1712020156434,-1442.70702215,0.00048,4]
[321247459,1712020156456,-500.0,0.00048328,2]
[321247460,1712020156479,-500.0,0.00048427,2]
[321247461,1712020156501,-2496.18971624,0.00048448,2]
[321247462,1712020156522,-2516.48,0.00048619,2]
[321247463,1712020156543,-175.3,0.00048679,120]
[321247464,1712020156565,-250.0,0.00048702,120]
[321247465,1712020156586,-250.0,0.00048808,120]
[321247466,1712020156609,-250.0,0.00048816,112]
[321247467,1712020156637,-150.0,0.00048841,2]
[321247468,1712020156660,-447.68,0.00048857,2]
[321247469,1712020156685,-210.01,0.00048938,15]
[321247470,1712020156707,-159.35681056,0.00048965,2]
[321247471,1712020156729,-5273.54,0.00049039,2]
[321247472,1712020156753,-357.71,0.00049062,120]
[321247473,1712020156775,-151.34,0.0004911,2]
[321247474,1712020156797,-500.0,0.0004911,2]
[321247475,1712020156820,-952.24,0.0004914,2]
[321247476,1712020156842,-9275.72,0.00049147,60]
[321247477,1712020156866,-182.96,0.00049206,2]
[321247478,1712020156889,-1093.0,0.00049206,2]
[321247479,1712020156916,-417.63,0.00049231,2]
[321247480,1712020156940,-174.47,0.000493,2]
[321247481,1712020156965,-417.63,0.00049366,2]
[321247482,1712020156990,-417.63,0.00049501,2]
[321247483,1712020157012,-185.95165688,0.00049547,2]
[321247484,1712020157247,-5104.01022336,0.00049547,2]
[321247485,1712020159107,-2403.9154378,0.00049547,2]
[321247486,1712020159128,-417.63,0.00049636,2]
[321247487,1712020159149,-14445.81918086,0.00049647,2]
[321247488,1712020159169,-1000.0,0.00049647,7]
[321247489,1712020159188,-1000.0,0.00049647,7]
[321247490,1712020159207,-1000.0,0.00049647,7]
[321247491,1712020159226,-1000.0,0.00049647,7]
[321247492,1712020159245,-1000.0,0.00049647,7]
[321247493,1712020159264,-1000.0,0.00049647,7]
[321247494,1712020159286,-1000.0,0.00049647,7]
[321247495,1712020159304,-1000.0,0.00049647,7]
[321247496,1712020159324,-1014.0,0.00049647,7]
[321247497,1712020159343,-1000.0,0.00049647,7]
[321247498,1712020159362,-1000.0,0.00049647,7]
[321247499,1712020159385,-1000.0,0.00049647,7]
[321247500,1712020159406,-650.83,0.00049663,2]
[321247501,1712020159428,-417.63,0.00049771,2]
[321247502,1712020159450,-168.58,0.0004979,2]
[321247503,1712020159471,-777.66,0.00049847,120]
[321247504,1712020159492,-417.63,0.00049906,2]
[321247505,1712020159511,-8486.94125624,0.0005,14]
[321247506,1712020159535,-417.63,0.00050041,2]
[321247507,1712020159556,-417.63,0.00050176,2]
[321247508,1712020159576,-417.63,0.00050311,2]
[321247509,1712020159597,-185.95165685,0.0005044,30]
[321247510,1712020159621,-417.63,0.00050446,2]
[321247511,1712020159642,-417.63,0.00050581,2]
[321247512,1712020159661,-7507.92566108,0.00050662,2]
[321247513,1712020159682,-2285.91,0.00050691,120]
[321247514,1712020159702,-417.63,0.00050716,2]
[321247515,1712020159723,-14445.81918083,0.00050751,2]
[321247516,1712020159742,-417.63,0.00050851,2]
[321247517,1712020159762,-417.63,0.00050986,2]
[321247518,1712020159783,-417.63,0.00051121,2]
[321247519,1712020159803,-150.0,0.0005114,120]
[321247520,1712020159824,-151.0,0.00051233,120]
[321247521,1712020159849,-417.63,0.00051256,2]
[321247522,1712020159869,-185.95165685,0.00051333,30]
[321247523,1712020159890,-254.82,0.00051356,2]
[321247524,1712020159910,-2516.48,0.00051359,2]
[321247525,1712020159933,-417.63,0.00051391,2]
[321247526,1712020159953,-417.63,0.00051526,2]
[321247527,1712020159973,-417.63,0.00051661,2]
[321247528,1712020159993,-210.01,0.00051677,120]
[321247529,1712020160013,-2954.03806557,0.00051764,2]
[321247530,1712020160033,-7507.92566108,0.00051777,2]
[321247531,1712020160053,-159.35681056,0.0005178,2]
[321247532,1712020160073,-174.73,0.00051795,2]
[321247533,1712020160092,-417.63,0.00051796,2]
[321247534,1712020160113,-14445.81918083,0.00051854,2]
[321247535,1712020160131,-1005.05366312,0.000519,24]
[321247536,1712020160150,-339.95592384,0.000519,2]
[321247537,1712020160171,-650.83,0.00051927,2]
[321247538,1712020172967,213.23181603,0.0004776,30]
[321247539,1712020190974,157.51379193,0.0004776,30]
[321247540,1712020204960,1043.30142532,0.0004356,4]
[321247541,1712020209625,575.44,0.00050556,2]
[321247542,1712020227714,326.24178645,0.000519,14]
[321247553,1712020232116,-276.59699999,0.00043532,30]
[321247554,1712020233068,-484.28691844,0.00043532,30]
[321247555,1712020233080,-482.87677638,0.00043532,30]
[321247556,1712020233143,-0.5514468,0.00043532,30]
[321247557,1712020233236,-559.18577829,0.00043532,30]
[321247558,1712020233296,-12825.91837006,0.00043532,30]
[321247559,1712020233306,-7995.74451949,0.00043532,90]
[321247560,1712020233318,-2037.39565223,0.00043532,90]
[321247616,1712020236818,197.95,0.0005199,10]
[321247628,1712020238108,-29966.85982828,0.00043532,90]
[321247630,1712020238118,-40000.0,0.00043532,60]
[321247632,1712020238127,-266.19889504,0.00051999,2]
[321247634,1712020238137,-2816.52135582,0.00051999,2]
[321247636,1712020238146,-380.43,0.00051999,60]
[321247638,1712020238155,-1737.28823617,0.00052,120]
[321247640,1712020238164,-220000.0,0.00052,7]
[321247641,1712020238173,-11080.44558401,0.00052,2]
[321247642,1712020238182,-1062.7,0.00052238,30]
[321247643,1712020238191,-150.0,0.00052238,30]
[321247644,1712020238199,-348.16,0.00052238,30]
[321247645,1712020238208,-303.94,0.00052238,30]
[321247646,1712020238217,-416.54,0.00052238,30]
[321247647,1712020238227,-234.87,0.00052238,30]
[321247648,1712020238236,-150.0,0.00052238,30]
[321247649,1712020238245,-348.16,0.00052238,30]
[321247650,1712020238254,-416.54,0.00052238,30]
[321247651,1712020238264,-150.0,0.00052238,30]
[321247652,1712020238273,-348.16,0.00052238,30]
[321247653,1712020238282,-416.54,0.00052238,30]
[321247654,1712020238291,-150.0,0.00052238,30]
[321247655,1712020238300,-150.0,0.00052238,30]
[321247656,1712020238309,-150.0,0.00052238,30]
[321247657,1712020238318,-575.44,0.00052819,2]
[321247658,1712020238327,-326.24178644,0.00052883,14]
[321247659,1712020238335,-7507.92566108,0.00052891,2]
[321247660,1712020238346,-1428.6,0.00053064,2]
[321247661,1712020238354,-1428.6,0.00053078,2]
[321247662,1712020238363,-1428.6,0.00053092,2]
[321247663,1712020238372,-1428.6,0.00053106,2]
[321247664,1712020238381,-1428.6,0.0005312,2]
[321247665,1712020238390,-1428.6,0.00053134,2]
[321247666,1712020238399,-1428.6,0.00053148,2]
[321247667,1712020238408,-1428.6,0.00053162,2]
[321247668,1712020238417,-1428.6,0.00053176,2]
[321247669,1712020238426,-151.76,0.00053183,120]
[321247670,1712020238435,-1428.6,0.0005319,2]
[321247671,1712020238444,-307.41382108,0.00053197,120]
[321247672,1712020238453,-1428.6,0.00053204,2]
[321247673,1712020238462,-1428.6,0.00053218,2]
[321247674,1712020238471,-1428.6,0.00053232,2]
[321247675,1712020238480,-1428.6,0.00053246,2]
[321247676,1712020238489,-1428.6,0.0005326,2]
[321247677,1712020238498,-1428.6,0.00053274,2]
[321247678,1712020238507,-450.43164634,0.00053277,4]
[321247679,1712020238517,-1428.6,0.00053288,2]
[321247680,1712020238526,-1428.6,0.00053302,2]
[321247681,1712020238535,-1428.6,0.00053316,2]
[321247683,1712020238544,-1428.6,0.0005333,2]
[321247685,1712020238553,-222.34,0.0005373,120]
[321247686,1712020238562,-19999.99,0.00053989,2]
[321247687,1712020238571,-1749.42991081,0.00054,2]
[321247688,1712020238579,-7507.92566108,0.00054006,2]
[321247689,1712020238590,-722.92644406,0.00054197,4]
[321247690,1712020238599,-237.28245259,0.00054198,20]
[321247691,1712020238608,-193.15721234,0.0005438,2]
[321247692,1712020238618,-150.43,0.0005438,120]
[321247693,1712020238627,-245000.0,0.0005439,2]
[321247694,1712020238637,-191.2156,0.0005439,2]
[321247695,1712020238646,-11411.8804,0.0005439,2]
[321247696,1712020238656,-14393.9767,0.0005439,2]
[321247697,1712020238665,-210.01,0.00054417,120]
[321247698,1712020238674,-151.0,0.00054466,120]
[321247699,1712020238683,-163.84080698,0.00054487,2]
[321247700,1712020238692,-444.25059916,0.00054488,4]
[321247701,1712020238701,-1960.55507901,0.00054488,4]
[321247702,1712020238710,-4694.05041538,0.00054489,4]
[321247703,1712020238719,-227694.98797774,0.0005449,15]
[321247704,1712020238728,-159.35681056,0.00054594,2]
[321247705,1712020238737,-151.68256544,0.00054694,62]
[321247706,1712020238746,-3513.81094462,0.00054694,32]
[321247707,1712020238755,-150.43,0.00054784,120]
[321247708,1712020238763,-153.37440798,0.00054794,120]
[321247709,1712020238772,-500.0,0.00054794,120]
[321247710,1712020238781,-500.0,0.00054794,120]
[321247711,1712020238790,-500.0,0.00054794,120]
[321247712,1712020238799,-500.0,0.00054794,120]
[321247713,1712020238808,-500.0,0.00054794,120]
[321247714,1712020238817,-500.0,0.00054794,120]
[321247715,1712020238826,-500.0,0.00054794,120]
[321247716,1712020238835,-500.0,0.00054794,120]
[321247717,1712020238846,-500.0,0.00054794,120]
[321247718,1712020238858,-500.0,0.00054794,120]
[321247719,1712020238867,-500.0,0.00054794,120]
[321247720,1712020238876,-544.46,0.00054794,120]
[321247721,1712020238885,-536.46,0.00054794,120]
[321247722,1712020238895,-500.0,0.00054794,120]